Cogmind - Beta 16.1 @@@ ROGUE MODE // 2026.02.15 @ 17:24:53 Player: +Jones Result: Destroyed by I2-1PC(R) with Subdweller Beam Cannon Performance ------------- Evolutions (0) 0 Regions Visited (2) 400 Robots Destroyed (53) 265 Value Destroyed (1449) 1449 Prototype IDs (6) 120 Alien Tech Used (0) 0 Bonus (-98) -98 TOTAL SCORE: 2136 Bonus ------- Friendly Fire -98 Cogmind --------- Core Integrity 0/250 Matter 191/300 Energy 199/200 System Corruption 0% Temperature Cool (9) Movement Rolling (115) Ox1 Location -10/Subcaves Parts ------- > --- POWER (1) -------- Subdweller Power Source > --- PROPULSION (2) --- Spiked Treads Compact Wheel > --- UTILITY (2) ------ Scrap Shield > --- WEAPON (2) ------- Battle Cannon Battle Cannon > --- INVENTORY (5) ---- Scrap Shield Makeshift Laser Mini Grenade Launcher Mini Grenade Launcher Peak State ------------ > --- POWER ------------ Subdweller Power Source > --- PROPULSION ------- Spiked Treads Compact Wheel > --- UTILITY ---------- Scrap Shield > --- WEAPON ----------- Makeshift Laser Battle Cannon > --- INVENTORY -------- Scrap Shield Battle Cannon Mini Grenade Launcher Mini Grenade Launcher [Rating: 16] Favorites ----------- Power Light Nuclear Core Engine Ion Engine Power Core Light Nuclear Core Propulsion Light Treads Treads Light Treads Wheel Wheel Utility Large Storage Unit Device Structural Scanner Storage Large Storage Unit Processor Improved Targeting Computer Protection Backup Plating I Weapon Assault Rifle Energy Gun Makeshift Laser Energy Cannon Subdweller Beam Cannon Ballistic Gun Assault Rifle Ballistic Cannon Battle Cannon Launcher Mini Grenade Launcher Special Weapon Mining Laser Build | -11 -10 -10 ------- Run | Yrd Mat Sub Slots Evolved . | . . . Power . | . . . Propulsion . | . . . Utility . | . . . Weapon . | . . . Parts Attached 36 | 6 15 15 Power 3 | 1 1 1 Engine 2 | 1 . 1 Core 1 | . 1 . Reactor . | . . . Propulsion 10 | 2 4 4 Treads 4 | 2 1 1 Leg . | . . . Wheel 6 | . 3 3 Hover . | . . . Flight . | . . . Utility 8 | 1 5 2 Device 3 | . 3 . Storage 2 | 1 1 . Processor 1 | . 1 . Hackware . | . . . Protection 2 | . . 2 Artifact . | . . . Weapon 15 | 2 5 8 Energy Gun 1 | . . 1 Energy Cannon 2 | . . 2 Ballistic Gun 6 | 2 3 1 Ballistic Cannon 3 | . . 3 Launcher 2 | . 1 1 Special Weapon 1 | . 1 . Impact Weapon . | . . . Slashing Weapon . | . . . Piercing Weapon . | . . . Special Melee Weapon . | . . . Unidentified Prototypes . | . . . Parts Lost 10 | . 5 5 Power 1 | . . 1 Propulsion 6 | . 3 3 Utility 1 | . 1 . Weapon 2 | . 1 1 Highest Loss Streak 2 | . 2 1 To Critical Strikes . | . . . Average Backups 9 | 2 7 11 Power . | . . . Propulsion 1 | . . 1 Utility 3 | . 2 4 Weapon 4 | 1 3 5 Tool/Special . | . . . Unused Backups 18 | . 4 14 Power . | . . . Propulsion . | . . . Utility 6 | . 1 5 Weapon 12 | . 3 9 Tool/Special . | . . . Average Slot Usage (%) 94 | . 97 90 Engine 5 | . 7 3 Core 7 | . 6 8 Treads 15 | . 18 11 Wheel 11 | . 8 14 Device 8 | . 6 10 Storage 12 | . 14 11 Protection 3 | . 4 2 Energy Cannon 3 | . . 8 Ballistic Gun 14 | . 25 2 Ballistic Cannon 4 | . . 9 Launcher 3 | . . 5 Special Weapon 1 | . 1 2 Peak Build Rating 16 | 6 14 16 Average Rating 10 | 5 8 13 On Entrance 6 | . 6 13 Avg Prop Armor Cover (%) 5 | . 6 5 Naked Turns . | . . . Heaviest Build 37 | 14 34 37 Greatest Support 40 | 40 40 40 Greatest Overweight (x) 3 | . 3 2 Average Overweight (x) . | . . . Largest Inventory Capacity 15 | 8 15 15 Average Capacity 13 | 7 14 12 Most Carried 15 | 5 14 15 Average Carried 9 | 2 7 12 Final Capacity 15 | 8 15 5 Final Carried 14 | 5 14 5 Class Distribution -------------------- 83% | Mutant 16% | Scavenger-Mutant Dominant Class ---------------- Mutant | -10/Materials Mutant | -10/Subcaves Resources | -11 -10 -10 ----------- Run | Yrd Mat Sub Matter Collected 2320 | 302 1258 760 Remotely . | . . . Salvage Created 1723 | 164 1182 377 Parts 108 | 11 71 26 Haulers Intercepted 2 | . 2 . Recyclers Shooed 1 | . 1 . Parts Field Recycled . | . . . Retrieved Matter . | . . . Parts Self-Destructed 6 | . . 6 Prevented . | . . . Parts Restored . | . . . Kills | -11 -10 -10 ------- Run | Yrd Mat Sub Combat Hostiles Destroyed 34 | . 19 15 Guns 19 | . 19 . Cannons 7 | . . 7 AOE 8 | . . 8 Classes Destroyed 10 | 2 6 2 Worker 4 | . 4 . Builder 1 | . 1 . Tunneler 6 | 4 2 . Hauler 2 | . 2 . Recycler 2 | 1 1 . Operator 1 | . 1 . Watcher 3 | . 3 . Grunt 19 | . 19 . Subdweller 15 | . . 15 Scientist 1 | . . 1 Best Kill Streak 4 | 4 4 4 Combat Bots Only 4 | . 4 4 Max Kills in Single Turn 3 | 1 1 3 Gunslinging . | . . . Exploded 3 | . . 3 Melee . | . . . Uniques/NPCs Destroyed . | . . . Combat | -11 -10 -10 -------- Run | Yrd Mat Sub Hostile Shots Fired 133 | . 99 34 Missed 34 | . 27 7 Hits 99 | . 72 27 Projectile 99 | . 72 27 AOE 2 | . . 2 Critical Strikes 1 | . . 1 Damage Taken 1682 | . 914 768 Core 266 | . 104 162 Absorbed by Shields . | . . . Core Remaining (%) 100 | 100 . . Volleys Fired 191 | 7 125 59 Largest 2 | 2 2 2 Hottest 113 | 40 100 113 Shots Fired 337 | 14 234 89 Gun 239 | 14 219 6 Cannon 54 | . . 54 Launcher 25 | . 2 23 Special 19 | . 13 6 Kinetic 281 | 14 219 48 Thermal 31 | . 13 18 Explosive 25 | . 2 23 Electromagnetic . | . . . Robot Hit Streak 25 | 12 20 25 Robot Miss Streak 3 | . 3 1 Penetration Max . | . . . Secondary Targets . | . . . Shots Hit Robots 213 | 12 158 43 Core Hits 91 | 6 59 26 Critical Kills . | . . . Critical Parts Destroyed 1 | . 1 . Critical Strikes 1 | . 1 . Destroy 1 | . 1 . Melee Attacks . | . . . Impact . | . . . Slashing . | . . . Piercing . | . . . Sneak Attacks . | . . . Combat Hostiles . | . . . Follow-up Attacks . | . . . Damage Inflicted 4213 | 152 2121 1940 Guns 2351 | 152 2121 78 Cannons 650 | . . 650 Explosions 1212 | . . 1212 Melee . | . . . Ramming . | . . . Kinetic 2801 | 152 2121 528 Thermal 200 | . . 200 Explosive 1212 | . . 1212 Electromagnetic . | . . . Impact . | . . . Slashing . | . . . Piercing . | . . . Highest Corruption . | . . . Average Corruption . | . . . Corruption Purged . | . . . Corruption Blocked . | . . . Overload Shots . | . . . Overflow Damage . | . . . Projectiles . | . . . Explosions . | . . . Melee . | . . . Knockbacks 3 | . . 3 Impact . | . . . Kinetic 3 | . . 3 Secondary . | . . . Self-Inflicted Damage 21 | . . 21 Shots 1 | . . 1 Rammed . | . . . Targets Rammed . | . . . Kicked . | . . . Crushed . | . . . Highest Temperature 234 | . 84 234 Average Temperature 22 | . 19 47 Received Heat Transfer 888 | . 513 375 Effects 2 | . . 2 Interference 2 | . . 2 Siege Activations . | . . . Martial Activations . | . . . Shielding Activations . | . . . Robots Disrupted . | . . . Combat Hostiles . | . . . Robots Corrupted . | . . . Combat Hostiles . | . . . Parts Fried . | . . . Impact Corruptions . | . . . Robots Melted . | . . . Combat Hostiles . | . . . Parts Melted . | . . . Heat Transferred 259 | . . 259 Parts Sabotaged . | . . . Parts Stolen . | . . . Parts Stripped . | . . . Power Chain Reactions . | . . . Alert | -11 -10 -10 ------- Run | Yrd Mat Sub Maximum Alert Level . | . . . Low Security (%) 100 | 100 100 . Level 1 . | . . . Level 2 . | . . . Level 3 . | . . . Level 4 . | . . . Level 5 . | . . . High Security . | . . . Max Security . | . . . Peak Influence 126 | 10 126 . Initial . | . . . Average 47 | 1 50 . Influence Increases 724 | 25 699 . Destroy 0b10 Robot/C 380 | . 380 . Destroy 0b10 Robot/NC 95 | 25 70 . Destroy Leader 90 | . 90 . Successful Hack 33 | . 33 . Select Force Hacks 60 | . 60 . Disable Machine 30 | . 30 . Destroy Structure 21 | . 21 . Lose Combat Pursuer 15 | . 15 . Influence Decreases 724 | 25 584 115 Entered New Map 56 | . . 56 Time Decay 608 | 25 534 49 Lost Part 60 | . 50 10 Squads Dispatched 5 | . 5 . Investigation 4 | . 4 . Extermination . | . . . Reinforcement 1 | . 1 . Assault . | . . . Garrison . | . . . Intercept . | . . . Searches Triggered . | . . . Construction Impeded . | . . . Haulers Reinforced . | . . . Active Scanning Responses . | . . . Cargo Convoy Interrupts . | . . . Stealth | -11 -10 -10 --------- Run | Yrd Mat Sub Distress Signals 2 | . 2 . Communications Jammed . | . . . Distress Signals . | . . . Times Spotted 47 | . 31 16 Peak Tracking Total 4 | . 4 3 Tactical Retreats 1 | . 1 . Traps | -11 -10 -10 ------- Run | Yrd Mat Sub Traps Triggered 5 | . 3 2 Indirectly . | . . . Trap Hack Attempts . | . . . Triggered . | . . . Disarmed . | . . . Reprogrammed . | . . . Reused . | . . . Traps Extracted . | . . . Installed . | . . . Triggered . | . . . Machines | -11 -10 -10 ---------- Run | Yrd Mat Sub Machines Disabled 2 | . 2 . Max in Single Turn 1 | . 1 . Machines Repaired . | . . . Machines Dismantled . | . . . Machines Sabotaged . | . . . Overloaded Fab Kills . | . . . Hacking | -11 -10 -10 --------- Run | Yrd Mat Sub Machines Accessed 11 | . 10 1 Terminals 7 | . 7 . Fabricators . | . . . Repair Stations 1 | . 1 . Recycling Units 2 | . 2 . Scanalyzers . | . . . Garrison Access . | . . . Total Hacks 37 | . 34 3 Successful 22 | . 19 3 Failed 15 | . 15 . Catastrophic . | . . . Database Lockouts . | . . . Manual 24 | . 24 . Terminals 30 | . 30 . Fabricators . | . . . Repair Stations 2 | . 2 . Recycling Units 2 | . 2 . Scanalyzers . | . . . Garrison Access . | . . . Terminal Hacks 10 | . 7 3 Record 3 | . . 3 Robot Analysis 2 | . 2 . Prototype ID Bank 4 | . 4 . Hauler Manifests 1 | . 1 . Fabricator Hacks . | . . . Repair Station Hacks 1 | . 1 . Refit 1 | . 1 . Recycling Unit Hacks . | . . . Scanalyzer . | . . . Garrison Access Hacks . | . . . Unauthorized Hacks 11 | . 11 . Terminals 9 | . 9 . Track 1 | . 1 . Botnet 2 | . 2 . Operators 1 | . 1 . Skim 5 | . 5 . Fabricators . | . . . Repair Stations . | . . . Recycling Units 2 | . 2 . Tunnel 2 | . 2 . Scanalyzers . | . . . Garrison Access . | . . . Data Cores Recovered . | . . . Used . | . . . Hacking Detections 8 | . 8 . Full Trace Events . | . . . Feedback Events . | . . . Feedback Blocked . | . . . Robot Schematics Acquired . | . . . Robots Built . | . . . Authchips . | . . . Time . | . . . Total Robot Build Rating . | . . . Part Schematics Acquired . | . . . Parts Built . | . . . Authchips . | . . . Time . | . . . Total Part Build Rating . | . . . Part Studies Acquired . | . . . Parts Repaired . | . . . Time . | . . . Parts Recycled . | . . . Recycled Matter . | . . . Retrieved Matter . | . . . Retrieved Components . | . . . Parts Scanalyzed . | . . . Part Schematics Acquired . | . . . Parts Damaged . | . . . Bothacking | -11 -10 -10 ------------ Run | Yrd Mat Sub Used RIF Installer . | . . . Robots Hacked . | . . . Non-combat . | . . . Combat . | . . . Robot Hacks Applied . | . . . Relay Couplers Released . | . . . Fabnet Peak Effective % . | . . . Robots Rewired . | . . . Allies Hacked . | . . . Hacks Repelled . | . . . Allies | -11 -10 -10 -------- Run | Yrd Mat Sub Total Allies . | . . . Largest Group . | . . . Highest-Rated Group . | . . . Highest-Rated Ally . | . . . Total Orders . | . . . Ally Attacks . | . . . Total Damage . | . . . Kills . | . . . Allies Corrupted . | . . . Allies Melted . | . . . Intel | -11 -10 -10 ------- Run | Yrd Mat Sub Active Infowar (turns) 2802 | . 860 1942 Structural 2802 | . 860 1942 Robot Analysis Total 2 | . 2 . Derelict Logs Recovered 2 | . . 2 Drone Launches . | . . . Drone Recoveries . | . . . Exploration | -11 -10 -10 ------------- Run | Yrd Mat Sub Turns Passed 5509 | 143 2754 2612 Spaces Moved 3107 | 67 1257 1783 Core 4 | 4 . . Treads 1499 | 63 966 470 Legs . | . . . Wheels 1604 | . 291 1313 Hover . | . . . Flight . | . . . Fastest Speed 50 | 50 95 95 Average Speed 144 | 153 170 126 Slowest Speed 260 | 160 240 260 Overloaded Moves . | . . . Propulsion Burnouts . | . . . Robots Hopped . | . . . Potential Cave-ins . | . . . Cave-ins Triggered . | . . . Exploration Rate (%) 62 | 4 99 84 Regions Visited 2 Branch Regions 1 Pre-discovered Areas 5 | . 3 2 Known Exits Taken . | . . . Unknown Exits Taken 2 | 1 1 . Scrap Searched 7 | . . 7 Spaces Dug 16 | . 6 10 Terrain Destroyed 139 | . 15 124 Melee . | . . . Projectile 9 | . 7 2 AOE 130 | . 8 122 Terrain Rammed . | . . . Walls Destroyed . | . . . Machines Disabled . | . . . Actions | -11 -10 -10 --------- Run | Yrd Mat Sub Total 3748 | 90 1617 2041 Wait 292 | 6 183 103 Move 3105 | 66 1256 1783 Hop . | . . . Pick Up 58 | 5 18 35 Fast Attach 22 | 6 8 8 Attach 14 | . 7 7 Detach 2 | . 2 . Swap 24 | . 7 17 Drop 40 | . 11 29 Fire 191 | 7 125 59 Melee . | . . . Ram . | . . . Kick . | . . . Crush . | . . . Escape Stasis . | . . . Rewire . | . . . Trap . | . . . Miscellaneous . | . . . Route ------- -11/Scrapyard -10/Materials (discovered 6 exits: [*Mat x3] / [*Min x2] / *Sub) -10/Subcaves (discovered 3 exits: *Mat x2 / Rec) History --------- Turn | Location | Event 10 | -11/Scrapyard | Discovered new exit (range 14) 144 | -11/Scrapyard | Entered Materials 317 | -10/Materials | Build established: Mutant 838 | -10/Materials | Discovered new exit (range 7) 970 | -10/Materials | Discovered new exit (range 13) 1121 | -10/Materials | Discovered new exit (range 10) 1236 | -10/Materials | Discovered new exit (range 13) 1487 | -10/Materials | Discovered new exit (range 8) 1640 | -10/Materials | Discovered new exit (range 8) 2296 | -10/Materials | Learned 2 Mines zone layouts 2338 | -10/Materials | Learned location of 2 exits from Materials 2388 | -10/Materials | Learned location of 2 exits from Subcaves 2898 | -10/Materials | Entered Subcaves 2899 | -10/Subcaves | Approached by a straggling Scientist 2899 | -10/Subcaves | Identified exit to Materials 2900 | -10/Subcaves | Identified exit to Recycling 2944 | -10/Subcaves | Visited Clippyterm 2947 | -10/Subcaves | Learned Factory trap positions 2959 | -10/Subcaves | Core integrity fell below 50% 3075 | -10/Subcaves | Learned location of Zion (-6) 3075 | -10/Subcaves | Met a Zionite searching for "candidates" 3089 | -10/Subcaves | Learned location of 1 exit from Materials 3155 | -10/Subcaves | Ambushed by Subdwellers from Twisted Machinery 3329 | -10/Subcaves | Ambushed by Subdweller buried in earth 3332 | -10/Subcaves | Ambushed by Subdweller buried in earth 3577 | -10/Subcaves | Disturbed a concealed Subdweller 3727 | -10/Subcaves | Shifting Twisted Machinery released Barrage Gun 3757 | -10/Subcaves | Shifting Twisted Machinery released Spk. Treads 4199 | -10/Subcaves | Shifting Twisted Machinery released Hvy. Riot Gun 4222 | -10/Subcaves | Shifting Twisted Machinery released Sub. Laser 4249 | -10/Subcaves | Disturbed a concealed Subdweller 4251 | -10/Subcaves | Core integrity fell below 20% 5259 | -10/Subcaves | Shifting Twisted Machinery released Piercing Trap 5415 | -10/Subcaves | Shifting Twisted Machinery released Ripper 5510 | -10/Subcaves | Destroyed by I2-1PC(R) with Subdweller Beam Cannon Last Messages --------------- 05178_ Subatomizers dissect the Disposable Heat Sink. Piercing Trap falls loose from the Twisted Machinery. 05397_ SY-UFU(R) knocked back. 05400_ SY-UFU(R) destroyed. 05405_ Acquired 4 matter. 05410_ Acquired 2 matter. Ripper falls loose from the Twisted Machinery. 05415_ Dropped Scrap Shield. 05417_ Acquired Scrap Shield. 05431_ Dropped Mak. Laser. 05433_ Acquired Mak. Laser. 05443_ LO-IHE(R) knocked back. 05452_ LO-IHE(R) destroyed. 05456_ Acquired 26 matter. 05457_ Acquired 4 matter. 05493_ Critical hit (Meltdown: +270). 05494_ Overheating: System interference. 05494_ Battle Cannon temporarily disabled. Map ----- +----------------------------------------------------+ | ???????????????????# ###### ## # # ### | | ???????????????????# ## ## ## """ | | ???????????????????# """ " ## | | ???????????????????# " """ ""## | | ???????????????????## ## ## " """ " # | | ????????????????????####### ##### "" """" | | ???????????????????????#### ##### " ##"" | | ???????????????????????# " #?## | | ??????????????????????## """" #?? | | ??????????????????????# #########?? | | ?????????????????????## ## ##??????###? | | ????????????????????## ## ### ###????### ## | | ???????????????????## ## ######?????## "" | | ???????????????????# ##???????## """""" | | ???????????????????# ##?????## """"""# | | ??????????????????# ### #?????# """#### | | ??????????????????# ??#R ##????## ""##??? | | ??????????????????## ?## #?????# "###???? | | ???????????????????### ?## ###?### ##??##? | | ???????????????????### ??# # ### ### ## | | ???????????????????# ??# & # | | ???????????????????# ??# " "" # | | ???????????????????# #?# "" ##"## ## | | ???????????????????# ## #### "######## ### | | ???????????????????# ##??# "#?????# "" | | ???????????????????# ## @#??## #####?# | | ???????????????????????####??# "" ### | | ?????????????????????????????##"" " "" | | ?????????????????????????????##"""" "" | | ?????????????????????????????# """"" | | ????????????????????????????# """%""" "" "" | | ??????????????????????????? """""/ " ## # | | ?????????????????????????? """""" &% #### " #### | | ????????????????????????? ""##### ####??# """#?? | | ???????????????????????? #??????# #?????# "" #?? | | ??????????????????????? ???????###?????## "##?? | | ???????????????????????? ????????????????? #??? | | ???????????????????????????????????????????? ????? | | ?????????????????????????????????????????????????? | | ?????????????????????????????????????????????????? | | ?????????????????????????????????????????????????? | | ?????????????????????????????????????????????????? | | ?????????????????????????????????????????????????? | | ????????????????>????????????????????????????????? | | ?????????????????????????????????????????????????? | | ##???????????????????????????????????????????????? | | ### ???????????????????????????????????????????? | | ## ###???????????????????????????????????????????? | | ##???????????????????????????????????????????? | | ##???????????????????????????????????????????? | +----------------------------------------------------+ Best States ------------- Heat Dissipation 39 Energy Generation 14 Energy Capacity 250 Matter Stores 300 Matter Capacity 300 Sight Range 16 Terrain Scan Density 10 Armor Coverage 800 Evasion (%) 41 Targeting Accuracy 6 Recoil Reduction 2 Item Schematics ----------------- None Robot Schematics ------------------ None Fabricated ------------ Nothing Repaired ---------- Nothing Studied --------- None Alien Tech Used ----------------- None Achievements -------------- None Challenges ------------ None Game ------ Seed SalvagingShadingFlamer Manual? 0 Play Time 00:34:23 Cumulative 397.3 hours Start 2026.02.15 @ 16:54:59 End 2026.02.15 @ 17:24:53 Sessions 1 Manual Loads 0 Difficulty Rogue Special Mode None Game No. 321 Rogue 321 Adventurer 0 Explorer 0 Win Type - Total 2 Types 2/0/0/0/0/0/0/0/0/0 Lore% 64 Gallery% 69 Achievement% 54 Wizard Run 0 Options --------- Layout 1 ASCII 0 Keyboard 0 Movement Mouse Keybinds 0 Fullscreen 1 Font 32/SmallcapsGlow Map View 50x35 Zoom Use 0% Tactical HUD 1 Map Filters NONE Filters NONE Steam 1 RUN: 98ce1587-2f18-445a-868e-a66bbeac0dcd